[Event "Titled Tuesday Blitz August 22 Late 2023"]
[White "rionelG"]
[Black "Ismayil, Malak"]
[BlackFideId "13412604"]
[WhiteElo "2344"]
[BlackElo "2516"]
[Result "0-1"]
[Round "2"]
[TimeControl "180+1"]
[Date "2023.08.22"]
[WhiteClock "0:00:04"]
[BlackClock "0:00:11"]
[Board "160"]

1. e4 {[%clk 0:03:00]}  e5 {[%clk 0:02:58]} 2. Nf3 {[%clk 0:03:00]}  Nc6 {[%clk 0:02:58]} 3. d4 {[%clk 0:03:00]}  exd4 {[%clk 0:02:58]} 4. Nxd4 {[%clk 0:03:01]}  Bc5 {[%clk 0:02:58]} 5. Nxc6 {[%clk 0:03:01]}  bxc6 {[%clk 0:02:59]} 6. Bd3 {[%clk 0:02:59]}  d6 {[%clk 0:02:56]} 7. O-O {[%clk 0:02:59]}  Nf6 {[%clk 0:02:56]} 8. Nc3 {[%clk 0:02:59]}  O-O {[%clk 0:02:57]} 9. Bg5 {[%clk 0:02:58]}  h6 {[%clk 0:02:56]} 10. Bh4 {[%clk 0:02:58]}  Rb8 {[%clk 0:02:55]} 11. Kh1 {[%clk 0:02:54]}  Bd4 {[%clk 0:02:41]} 12. Rb1 {[%clk 0:02:49]}  Bxc3 {[%clk 0:02:33]} 13. bxc3 {[%clk 0:02:49]}  Rxb1 {[%clk 0:02:33]} 14. Qxb1 {[%clk 0:02:49]}  Qe7 {[%clk 0:02:34]} 15. f4 {[%clk 0:02:47]}  Qe6 {[%clk 0:02:32]} 16. Qb3 {[%clk 0:02:10]}  d5 {[%clk 0:02:19]} 17. e5 {[%clk 0:01:52]}  Nd7 {[%clk 0:02:09]} 18. Qa3 {[%clk 0:01:41]}  c5 {[%clk 0:01:48]} 19. Bg3 {[%clk 0:01:25]}  c4 {[%clk 0:01:25]} 20. Be2 {[%clk 0:01:02]}  Qf5 {[%clk 0:01:09]} 21. Qxa7 {[%clk 0:00:21]}  Qxc2 {[%clk 0:01:06]} 22. Bg4 {[%clk 0:00:22]}  Nb6 {[%clk 0:00:52]} 23. f5 {[%clk 0:00:17]}  Qd3 {[%clk 0:00:42]} 24. Re1 {[%clk 0:00:16]}  Bxf5 {[%clk 0:00:38]} 25. Bxf5 {[%clk 0:00:16]}  Qxf5 {[%clk 0:00:39]} 26. Qxc7 {[%clk 0:00:16]}  Qe6 {[%clk 0:00:36]} 27. Rb1 {[%clk 0:00:11]}  Na4 {[%clk 0:00:12]} 28. Qa5 {[%clk 0:00:10]}  Qc6 {[%clk 0:00:13]} 29. Rb6 {[%clk 0:00:04]}  Qxb6 {[%clk 0:00:11]} 0-1


[Site "https://www.chess.com"]

[Event "Titled Tuesday Blitz August 22 Late 2023"]
[White "Olenik Campa, Rudi"]
[Black "whiteglovethief"]
[WhiteFideId "14633264"]
[WhiteElo "2516"]
[BlackElo "2344"]
[Result "0-1"]
[Round "2"]
[TimeControl "180+1"]
[Date "2023.08.22"]
[WhiteClock "0:01:28"]
[BlackClock "0:00:36"]
[Board "161"]

1. e4 {[%clk 0:03:00]}  e6 {[%clk 0:02:59]} 2. d4 {[%clk 0:03:00]}  d5 {[%clk 0:03:00]} 3. exd5 {[%clk 0:03:00]}  exd5 {[%clk 0:03:00]} 4. Bd3 {[%clk 0:03:01]}  Bd6 {[%clk 0:03:00]} 5. Qf3 {[%clk 0:02:57]}  Nf6 {[%clk 0:03:00]} 6. h3 {[%clk 0:02:55]}  Qe7+ {[%clk 0:03:00]} 7. Ne2 {[%clk 0:02:55]}  Ne4 {[%clk 0:03:00]} 8. Nbc3 {[%clk 0:02:50]}  Nxc3 {[%clk 0:02:59]} 9. bxc3 {[%clk 0:02:49]}  c6 {[%clk 0:02:59]} 10. O-O {[%clk 0:02:48]}  O-O {[%clk 0:02:59]} 11. Ng3 {[%clk 0:02:48]}  Bxg3 {[%clk 0:02:52]} 12. Qxg3 {[%clk 0:02:46]}  Nd7 {[%clk 0:02:50]} 13. Bg5 {[%clk 0:02:45]}  f6 {[%clk 0:02:48]} 14. Rfe1 {[%clk 0:02:45]}  Qf7 {[%clk 0:02:48]} 15. Bf4 {[%clk 0:02:43]}  Re8 {[%clk 0:02:33]} 16. Qh4 {[%clk 0:02:43]}  g6 {[%clk 0:02:27]} 17. Qg3 {[%clk 0:02:36]}  Nf8 {[%clk 0:02:25]} 18. h4 {[%clk 0:02:34]}  Ne6 {[%clk 0:02:20]} 19. Bd2 {[%clk 0:02:33]}  Bd7 {[%clk 0:02:20]} 20. h5 {[%clk 0:02:33]}  g5 {[%clk 0:02:13]} 21. h6 {[%clk 0:02:21]}  Kh8 {[%clk 0:02:03]} 22. c4 {[%clk 0:02:21]}  Rad8 {[%clk 0:01:48]} 23. cxd5 {[%clk 0:02:16]}  cxd5 {[%clk 0:01:49]} 24. c4 {[%clk 0:02:17]}  Nxd4 {[%clk 0:01:44]} 25. Bc3 {[%clk 0:02:16]}  dxc4 {[%clk 0:01:42]} 26. Bxd4 {[%clk 0:02:14]}  cxd3 {[%clk 0:01:41]} 27. Qxg5 {[%clk 0:02:12]}  Rf8 {[%clk 0:01:36]} 28. Re3 {[%clk 0:01:49]}  d2 {[%clk 0:01:09]} 29. Rg3 {[%clk 0:01:44]}  Ba4 {[%clk 0:00:40]} 30. Qg6 {[%clk 0:01:28]}  Qxg6 {[%clk 0:00:36]} 0-1


[Site "https://www.chess.com"]

[Event "Titled Tuesday Blitz August 22 Late 2023"]
[White "Bullen, Alex"]
[Black "Van Foreest, Machteld"]
[WhiteFideId "1801627"]
[BlackFideId "1051563"]
[WhiteElo "2332"]
[BlackElo "2512"]
[Result "1-0"]
[Round "2"]
[TimeControl "180+1"]
[Date "2023.08.22"]
[WhiteClock "0:00:08"]
[BlackClock "0:01:17"]
[Board "164"]

1. d4 {[%clk 0:02:58]}  Nf6 {[%clk 0:02:59]} 2. Nf3 {[%clk 0:02:58]}  e6 {[%clk 0:02:58]} 3. Bf4 {[%clk 0:02:58]}  d5 {[%clk 0:02:58]} 4. e3 {[%clk 0:02:58]}  Bd6 {[%clk 0:02:57]} 5. Bg3 {[%clk 0:02:59]}  O-O {[%clk 0:02:57]} 6. Bd3 {[%clk 0:02:59]}  c5 {[%clk 0:02:58]} 7. c3 {[%clk 0:03:00]}  Nc6 {[%clk 0:02:58]} 8. Nbd2 {[%clk 0:03:00]}  b6 {[%clk 0:02:57]} 9. e4 {[%clk 0:03:01]}  dxe4 {[%clk 0:02:57]} 10. Nxe4 {[%clk 0:02:59]}  Nxe4 {[%clk 0:02:57]} 11. Bxe4 {[%clk 0:03:00]}  Bb7 {[%clk 0:02:57]} 12. dxc5 {[%clk 0:02:56]}  Bxc5 {[%clk 0:02:55]} 13. Qa4 {[%clk 0:02:56]}  Rc8 {[%clk 0:02:50]} 14. Rd1 {[%clk 0:02:52]}  Qf6 {[%clk 0:02:48]} 15. Bh4 {[%clk 0:02:42]}  Qh6 {[%clk 0:02:44]} 16. Bg5 {[%clk 0:02:23]}  Qh5 {[%clk 0:02:43]} 17. g4 {[%clk 0:01:49]}  Qh3 {[%clk 0:02:42]} 18. Ng1 {[%clk 0:01:41]}  Qxg4 {[%clk 0:02:30]} 19. Bxh7+ {[%clk 0:01:41]}  Kxh7 {[%clk 0:02:15]} 20. Qxg4 {[%clk 0:01:41]}  Ne5 {[%clk 0:02:15]} 21. Qh5+ {[%clk 0:01:21]}  Kg8 {[%clk 0:02:14]} 22. f3 {[%clk 0:01:17]}  Bxg1 {[%clk 0:01:42]} 23. Rxg1 {[%clk 0:01:07]}  f6 {[%clk 0:01:42]} 24. Bh6 {[%clk 0:00:49]}  Nxf3+ {[%clk 0:01:40]} 25. Kf2 {[%clk 0:00:46]}  Nxg1 {[%clk 0:01:32]} 26. Rxg1 {[%clk 0:00:47]}  Rf7 {[%clk 0:01:32]} 27. Qxf7+ {[%clk 0:00:26]}  Kxf7 {[%clk 0:01:30]} 28. Rxg7+ {[%clk 0:00:27]}  Ke8 {[%clk 0:01:30]} 29. Rxb7 {[%clk 0:00:27]}  Rc5 {[%clk 0:01:29]} 30. Rxa7 {[%clk 0:00:17]}  Rh5 {[%clk 0:01:28]} 31. Bf4 {[%clk 0:00:16]}  e5 {[%clk 0:01:28]} 32. Bg3 {[%clk 0:00:15]}  Rf5+ {[%clk 0:01:28]} 33. Ke2 {[%clk 0:00:13]}  e4 {[%clk 0:01:24]} 34. Rb7 {[%clk 0:00:12]}  Rb5 {[%clk 0:01:24]} 35. b4 {[%clk 0:00:10]}  f5 {[%clk 0:01:24]} 36. a4 {[%clk 0:00:10]}  Rd5 {[%clk 0:01:23]} 37. Rxb6 {[%clk 0:00:10]}  Rd3 {[%clk 0:01:23]} 38. Rf6 {[%clk 0:00:05]}  Rxc3 {[%clk 0:01:18]} 39. Rxf5 {[%clk 0:00:06]}  Rc4 {[%clk 0:01:19]} 40. Re5+ {[%clk 0:00:05]}  Kd7 {[%clk 0:01:18]} 41. Rb5 {[%clk 0:00:06]}  Kc6 {[%clk 0:01:16]} 42. Rc5+ {[%clk 0:00:06]}  Rxc5 {[%clk 0:01:15]} 43. bxc5 {[%clk 0:00:06]}  Kxc5 {[%clk 0:01:16]} 44. Ke3 {[%clk 0:00:06]}  Kb4 {[%clk 0:01:16]} 45. Kxe4 {[%clk 0:00:06]}  Kxa4 {[%clk 0:01:16]} 46. h4 {[%clk 0:00:06]}  Kb5 {[%clk 0:01:17]} 47. h5 {[%clk 0:00:07]}  Kc6 {[%clk 0:01:18]} 48. h6 {[%clk 0:00:07]}  Kd7 {[%clk 0:01:19]} 49. h7 {[%clk 0:00:07]}  Ke8 {[%clk 0:01:17]} 50. h8=Q+ {[%clk 0:00:08]} 1-0


[Site "https://www.chess.com"]

[Event "Titled Tuesday Blitz August 22 Late 2023"]
[White "kiwibobo"]
[Black "Ozkan, Taha"]
[BlackFideId "34577173"]
[WhiteElo "2324"]
[BlackElo "2510"]
[Result "0-1"]
[Round "2"]
[TimeControl "180+1"]
[Date "2023.08.22"]
[WhiteClock "0:00:43"]
[BlackClock "0:01:53"]
[Board "166"]

1. e4 {[%clk 0:03:00]}  e6 {[%clk 0:02:56]} 2. d4 {[%clk 0:02:59]}  d5 {[%clk 0:02:56]} 3. Nd2 {[%clk 0:03:00]}  c5 {[%clk 0:02:56]} 4. Ngf3 {[%clk 0:02:59]}  cxd4 {[%clk 0:02:55]} 5. Nxd4 {[%clk 0:02:59]}  Nc6 {[%clk 0:02:56]} 6. Bb5 {[%clk 0:02:59]}  Bd7 {[%clk 0:02:55]} 7. Nxc6 {[%clk 0:02:59]}  bxc6 {[%clk 0:02:56]} 8. Bd3 {[%clk 0:02:59]}  Bd6 {[%clk 0:02:57]} 9. Qe2 {[%clk 0:02:58]}  Qc7 {[%clk 0:02:57]} 10. Nf3 {[%clk 0:02:58]}  e5 {[%clk 0:02:55]} 11. exd5 {[%clk 0:02:34]}  cxd5 {[%clk 0:02:55]} 12. c4 {[%clk 0:02:35]}  dxc4 {[%clk 0:02:52]} 13. Bxc4 {[%clk 0:02:29]}  Ne7 {[%clk 0:02:49]} 14. O-O {[%clk 0:02:23]}  O-O {[%clk 0:02:48]} 15. h3 {[%clk 0:02:17]}  Rfc8 {[%clk 0:02:43]} 16. b3 {[%clk 0:02:10]}  h6 {[%clk 0:02:42]} 17. Bb2 {[%clk 0:02:05]}  Ng6 {[%clk 0:02:41]} 18. Rac1 {[%clk 0:02:03]}  Qb7 {[%clk 0:02:36]} 19. Ba6 {[%clk 0:01:29]}  Nf4 {[%clk 0:02:14]} 20. Rxc8+ {[%clk 0:01:29]}  Bxc8 {[%clk 0:02:09]} 21. Bxb7 {[%clk 0:00:37]}  Nxe2+ {[%clk 0:02:07]} 22. Kh1 {[%clk 0:00:37]}  Bxb7 {[%clk 0:02:08]} 23. Nxe5 {[%clk 0:00:37]}  Nf4 {[%clk 0:02:06]} 24. f3 {[%clk 0:00:35]}  Bxe5 {[%clk 0:02:04]} 25. Bxe5 {[%clk 0:00:36]}  Ne6 {[%clk 0:02:04]} 26. Rd1 {[%clk 0:00:36]}  Rd8 {[%clk 0:02:04]} 27. Rxd8+ {[%clk 0:00:35]}  Nxd8 {[%clk 0:02:04]} 28. Kg1 {[%clk 0:00:36]}  f6 {[%clk 0:02:01]} 29. Bd4 {[%clk 0:00:35]}  a6 {[%clk 0:02:01]} 30. Bb6 {[%clk 0:00:35]}  Ne6 {[%clk 0:02:00]} 31. Kf2 {[%clk 0:00:36]}  Kf7 {[%clk 0:02:01]} 32. Ke3 {[%clk 0:00:37]}  Ke7 {[%clk 0:02:02]} 33. Ba5 {[%clk 0:00:36]}  Kd6 {[%clk 0:02:03]} 34. Bb4+ {[%clk 0:00:37]}  Kd5 {[%clk 0:02:03]} 35. Bc3 {[%clk 0:00:36]}  Bc6 {[%clk 0:02:03]} 36. Bb2 {[%clk 0:00:36]}  Bb5 {[%clk 0:02:03]} 37. Bc3 {[%clk 0:00:37]}  Bf1 {[%clk 0:02:03]} 38. Kf2 {[%clk 0:00:38]}  Bd3 {[%clk 0:02:03]} 39. Ke3 {[%clk 0:00:38]}  Bb1 {[%clk 0:02:04]} 40. a3 {[%clk 0:00:37]}  Ba2 {[%clk 0:02:05]} 41. b4 {[%clk 0:00:37]}  Bb3 {[%clk 0:02:05]} 42. Bb2 {[%clk 0:00:36]}  f5 {[%clk 0:02:04]} 43. Kd2 {[%clk 0:00:33]}  g6 {[%clk 0:02:03]} 44. Ke3 {[%clk 0:00:33]}  h5 {[%clk 0:02:02]} 45. g4 {[%clk 0:00:30]}  hxg4 {[%clk 0:02:01]} 46. hxg4 {[%clk 0:00:31]}  fxg4 {[%clk 0:02:00]} 47. fxg4 {[%clk 0:00:32]}  Bd1 {[%clk 0:02:00]} 48. Kd3 {[%clk 0:00:25]}  Bxg4 {[%clk 0:01:59]} 49. a4 {[%clk 0:00:26]}  Bd1 {[%clk 0:01:59]} 50. b5 {[%clk 0:00:27]}  Bxa4 {[%clk 0:01:59]} 51. bxa6 {[%clk 0:00:27]}  Bb5+ {[%clk 0:02:00]} 52. Ke3 {[%clk 0:00:27]}  Bxa6 {[%clk 0:02:01]} 53. Kf3 {[%clk 0:00:28]}  Bd3 {[%clk 0:02:00]} 54. Kg4 {[%clk 0:00:28]}  Ke4 {[%clk 0:02:01]} 55. Bf6 {[%clk 0:00:28]}  Be2+ {[%clk 0:02:01]} 56. Kg3 {[%clk 0:00:27]}  Kf5 {[%clk 0:02:02]} 57. Be7 {[%clk 0:00:28]}  Bc4 {[%clk 0:02:02]} 58. Kg2 {[%clk 0:00:27]}  g5 {[%clk 0:02:02]} 59. Bxg5 {[%clk 0:00:28]}  Kxg5 {[%clk 0:02:03]} 60. Kf2 {[%clk 0:00:29]}  Kf4 {[%clk 0:02:03]} 61. Ke1 {[%clk 0:00:29]}  Ke3 {[%clk 0:02:02]} 62. Kd1 {[%clk 0:00:30]}  Kd3 {[%clk 0:02:02]} 63. Kc1 {[%clk 0:00:31]}  Nd4 {[%clk 0:02:03]} 64. Kb2 {[%clk 0:00:32]}  Nc2 {[%clk 0:02:02]} 65. Kc1 {[%clk 0:00:32]}  Kc3 {[%clk 0:02:02]} 66. Kd1 {[%clk 0:00:32]}  Bd3 {[%clk 0:01:51]} 67. Kc1 {[%clk 0:00:31]}  Be2 {[%clk 0:01:52]} 68. Kb1 {[%clk 0:00:31]}  Bc4 {[%clk 0:01:52]} 69. Kc1 {[%clk 0:00:31]}  Ba2 {[%clk 0:01:53]} 70. Kd1 {[%clk 0:00:32]}  Nd4 {[%clk 0:01:54]} 71. Ke1 {[%clk 0:00:33]}  Kd3 {[%clk 0:01:54]} 72. Kf2 {[%clk 0:00:34]}  Ne2 {[%clk 0:01:55]} 73. Kf3 {[%clk 0:00:34]}  Be6 {[%clk 0:01:55]} 74. Kf2 {[%clk 0:00:35]}  Bg4 {[%clk 0:01:51]} 75. Ke1 {[%clk 0:00:36]}  Nc3 {[%clk 0:01:51]} 76. Kf2 {[%clk 0:00:37]}  Ne4+ {[%clk 0:01:52]} 77. Ke1 {[%clk 0:00:38]}  Kc2 {[%clk 0:01:52]} 78. Kf1 {[%clk 0:00:37]}  Kd2 {[%clk 0:01:53]} 79. Kg2 {[%clk 0:00:38]}  Ke2 {[%clk 0:01:53]} 80. Kg1 {[%clk 0:00:39]}  Bh3 {[%clk 0:01:53]} 81. Kh2 {[%clk 0:00:39]}  Bf1 {[%clk 0:01:53]} 82. Kg1 {[%clk 0:00:40]}  Ke1 {[%clk 0:01:53]} 83. Kh2 {[%clk 0:00:41]}  Kf2 {[%clk 0:01:53]} 84. Kh1 {[%clk 0:00:42]}  Nd2 {[%clk 0:01:51]} 85. Kh2 {[%clk 0:00:43]}  Nf3+ {[%clk 0:01:52]} 86. Kh1 {[%clk 0:00:43]}  Bg2# {[%clk 0:01:53]} 0-1


[Site "https://www.chess.com"]

[Event "Titled Tuesday Blitz August 22 Late 2023"]
[White "Lopez Del Alamo, Antonio"]
[Black "Miszler, Levente"]
[WhiteFideId "2227339"]
[BlackFideId "763276"]
[WhiteElo "2324"]
[BlackElo "2507"]
[Result "1-0"]
[Round "2"]
[TimeControl "180+1"]
[Date "2023.08.22"]
[WhiteClock "0:00:13"]
[BlackClock "0:00:03"]
[Board "167"]

1. e4 {[%clk 0:03:00]}  c5 {[%clk 0:02:53]} 2. Nf3 {[%clk 0:02:58]}  d6 {[%clk 0:02:45]} 3. d4 {[%clk 0:02:54]}  cxd4 {[%clk 0:02:46]} 4. Nxd4 {[%clk 0:02:52]}  Nf6 {[%clk 0:02:45]} 5. Nc3 {[%clk 0:02:53]}  a6 {[%clk 0:02:46]} 6. Be2 {[%clk 0:02:48]}  e5 {[%clk 0:02:44]} 7. Nb3 {[%clk 0:02:49]}  Be6 {[%clk 0:02:44]} 8. Be3 {[%clk 0:02:49]}  Be7 {[%clk 0:02:44]} 9. Nd5 {[%clk 0:02:50]}  Nbd7 {[%clk 0:02:38]} 10. Qd3 {[%clk 0:02:44]}  O-O {[%clk 0:02:37]} 11. c4 {[%clk 0:02:42]}  Ne8 {[%clk 0:02:16]} 12. O-O {[%clk 0:02:23]}  f5 {[%clk 0:02:11]} 13. exf5 {[%clk 0:02:16]}  Bxf5 {[%clk 0:02:10]} 14. Qd2 {[%clk 0:02:16]}  Nc7 {[%clk 0:02:02]} 15. Na5 {[%clk 0:02:11]}  Nxd5 {[%clk 0:02:00]} 16. Qxd5+ {[%clk 0:02:09]}  Kh8 {[%clk 0:02:00]} 17. Nxb7 {[%clk 0:02:08]}  Qc7 {[%clk 0:01:57]} 18. Na5 {[%clk 0:01:58]}  Nf6 {[%clk 0:01:52]} 19. Qd2 {[%clk 0:01:52]}  Ng4 {[%clk 0:01:48]} 20. Bxg4 {[%clk 0:01:35]}  Bxg4 {[%clk 0:01:47]} 21. Rac1 {[%clk 0:01:35]}  Rab8 {[%clk 0:01:38]} 22. b4 {[%clk 0:01:10]}  Qd7 {[%clk 0:01:09]} 23. f3 {[%clk 0:01:00]}  Be6 {[%clk 0:01:05]} 24. a3 {[%clk 0:00:56]}  Qa4 {[%clk 0:01:04]} 25. Rfd1 {[%clk 0:00:44]}  Qxa3 {[%clk 0:00:55]} 26. Nc6 {[%clk 0:00:43]}  Rb7 {[%clk 0:00:50]} 27. Nxe7 {[%clk 0:00:42]}  Rxe7 {[%clk 0:00:50]} 28. Qc3 {[%clk 0:00:22]}  Qxc3 {[%clk 0:00:49]} 29. Rxc3 {[%clk 0:00:22]}  Rd8 {[%clk 0:00:42]} 30. c5 {[%clk 0:00:20]}  d5 {[%clk 0:00:42]} 31. Bg5 {[%clk 0:00:20]}  Red7 {[%clk 0:00:41]} 32. Bxd8 {[%clk 0:00:20]}  Rxd8 {[%clk 0:00:42]} 33. c6 {[%clk 0:00:20]}  d4 {[%clk 0:00:43]} 34. Rc5 {[%clk 0:00:21]}  Rd6 {[%clk 0:00:38]} 35. Rxe5 {[%clk 0:00:20]}  Rxc6 {[%clk 0:00:37]} 36. Rxd4 {[%clk 0:00:21]}  h6 {[%clk 0:00:37]} 37. Kf2 {[%clk 0:00:19]}  Kh7 {[%clk 0:00:36]} 38. Rc5 {[%clk 0:00:19]}  Rb6 {[%clk 0:00:36]} 39. Rc7 {[%clk 0:00:15]}  Bf5 {[%clk 0:00:32]} 40. Kg3 {[%clk 0:00:15]}  Rg6+ {[%clk 0:00:31]} 41. Kf2 {[%clk 0:00:14]}  Bb1 {[%clk 0:00:22]} 42. Rdd7 {[%clk 0:00:13]}  Ba2 {[%clk 0:00:21]} 43. Re7 {[%clk 0:00:12]}  Bd5 {[%clk 0:00:21]} 44. g4 {[%clk 0:00:12]}  Be6 {[%clk 0:00:17]} 45. Kg3 {[%clk 0:00:11]}  h5 {[%clk 0:00:17]} 46. h3 {[%clk 0:00:11]}  hxg4 {[%clk 0:00:17]} 47. hxg4 {[%clk 0:00:11]}  Bd5 {[%clk 0:00:18]} 48. f4 {[%clk 0:00:11]}  Be6 {[%clk 0:00:17]} 49. g5 {[%clk 0:00:11]}  Bf5 {[%clk 0:00:17]} 50. Rf7 {[%clk 0:00:11]}  Bd3 {[%clk 0:00:16]} 51. Kg4 {[%clk 0:00:12]}  Be2+ {[%clk 0:00:16]} 52. Kg3 {[%clk 0:00:12]}  Bd3 {[%clk 0:00:17]} 53. Kh4 {[%clk 0:00:12]}  Be4 {[%clk 0:00:07]} 54. f5 {[%clk 0:00:12]}  Rd6 {[%clk 0:00:08]} 55. Rxg7+ {[%clk 0:00:12]}  Kh8 {[%clk 0:00:08]} 56. f6 {[%clk 0:00:12]}  Rd4 {[%clk 0:00:03]} 57. Rc8+ {[%clk 0:00:13]} 1-0


[Site "https://www.chess.com"]

[Event "Titled Tuesday Blitz August 22 Late 2023"]
[White "Filgueiras, Nathan Felipe"]
[Black "Sala, Giulia"]
[WhiteFideId "2188562"]
[BlackFideId "2840451"]
[WhiteElo "2505"]
[BlackElo "2309"]
[Result "0-1"]
[Round "2"]
[TimeControl "180+1"]
[Date "2023.08.22"]
[WhiteClock "0:02:25"]
[BlackClock "0:02:16"]
[Board "169"]

1. e4 {[%clk 0:03:00]}  c5 {[%clk 0:03:00]} 2. Nf3 {[%clk 0:03:00]}  Nc6 {[%clk 0:03:00]} 3. d4 {[%clk 0:03:01]}  cxd4 {[%clk 0:03:00]} 4. Nxd4 {[%clk 0:03:02]}  g6 {[%clk 0:03:01]} 5. c4 {[%clk 0:03:01]}  Nf6 {[%clk 0:03:00]} 6. Nc3 {[%clk 0:03:01]}  d6 {[%clk 0:03:00]} 7. Be2 {[%clk 0:02:58]}  Nxd4 {[%clk 0:03:00]} 8. Qxd4 {[%clk 0:02:59]}  Bg7 {[%clk 0:03:01]} 9. Be3 {[%clk 0:03:00]}  O-O {[%clk 0:03:01]} 10. Qd2 {[%clk 0:02:59]}  Be6 {[%clk 0:02:56]} 11. f3 {[%clk 0:02:59]}  Qa5 {[%clk 0:02:50]} 12. Rc1 {[%clk 0:02:54]}  Rfc8 {[%clk 0:02:48]} 13. b3 {[%clk 0:02:54]}  a6 {[%clk 0:02:45]} 14. Na4 {[%clk 0:02:46]}  Qxd2+ {[%clk 0:02:40]} 15. Kxd2 {[%clk 0:02:47]}  Nd7 {[%clk 0:02:40]} 16. Nb6 {[%clk 0:02:34]}  Nxb6 {[%clk 0:02:40]} 17. Bxb6 {[%clk 0:02:35]}  Rc6 {[%clk 0:02:38]} 18. c5 {[%clk 0:02:34]}  Bh6+ {[%clk 0:02:28]} 19. Kd3 {[%clk 0:02:30]}  Bxc1 {[%clk 0:02:26]} 20. Rxc1 {[%clk 0:02:30]}  dxc5 {[%clk 0:02:18]} 21. Rxc5 {[%clk 0:02:25]}  Rxb6 {[%clk 0:02:16]} 0-1


[Site "https://www.chess.com"]

[Event "Titled Tuesday Blitz August 22 Late 2023"]
[White "Alfaro, William"]
[Black "Vafin, Ayrat"]
[WhiteFideId "6100457"]
[BlackFideId "4146530"]
[WhiteElo "2308"]
[BlackElo "2504"]
[Result "0-1"]
[Round "2"]
[TimeControl "180+1"]
[Date "2023.08.22"]
[WhiteClock "0:00:00"]
[BlackClock "0:01:42"]
[Board "170"]

1. e4 {[%clk 0:02:59]}  e5 {[%clk 0:02:59]} 2. Nf3 {[%clk 0:02:59]}  Nf6 {[%clk 0:02:58]} 3. Nxe5 {[%clk 0:02:54]}  d6 {[%clk 0:02:58]} 4. Nf3 {[%clk 0:02:54]}  Nxe4 {[%clk 0:02:58]} 5. Nc3 {[%clk 0:02:53]}  Nxc3 {[%clk 0:02:59]} 6. dxc3 {[%clk 0:02:54]}  Be7 {[%clk 0:03:00]} 7. Bc4 {[%clk 0:02:49]}  Nc6 {[%clk 0:03:00]} 8. O-O {[%clk 0:02:47]}  O-O {[%clk 0:02:59]} 9. h3 {[%clk 0:02:35]}  Bf5 {[%clk 0:02:59]} 10. Nd4 {[%clk 0:02:34]}  Nxd4 {[%clk 0:02:51]} 11. cxd4 {[%clk 0:02:33]}  d5 {[%clk 0:02:50]} 12. Bd3 {[%clk 0:02:33]}  Bxd3 {[%clk 0:02:49]} 13. Qxd3 {[%clk 0:02:32]}  Bf6 {[%clk 0:02:49]} 14. Bf4 {[%clk 0:02:24]}  Re8 {[%clk 0:02:48]} 15. Rfe1 {[%clk 0:02:23]}  Qd7 {[%clk 0:02:36]} 16. c3 {[%clk 0:02:00]}  c6 {[%clk 0:02:25]} 17. Re3 {[%clk 0:01:58]}  Rxe3 {[%clk 0:02:24]} 18. Qxe3 {[%clk 0:01:47]}  Re8 {[%clk 0:02:25]} 19. Qd2 {[%clk 0:01:40]}  Qf5 {[%clk 0:02:22]} 20. Re1 {[%clk 0:01:26]}  Rxe1+ {[%clk 0:02:19]} 21. Qxe1 {[%clk 0:01:25]}  h5 {[%clk 0:02:08]} 22. Qe8+ {[%clk 0:01:03]}  Kh7 {[%clk 0:02:08]} 23. Be5 {[%clk 0:00:23]}  Bh4 {[%clk 0:01:49]} 24. g3 {[%clk 0:00:16]}  Bg5 {[%clk 0:01:49]} 25. f4 {[%clk 0:00:11]}  Bh6 {[%clk 0:01:48]} 26. Kg2 {[%clk 0:00:03]}  h4 {[%clk 0:01:42]} 27. g4 {[%clk 0:00:01]}  Qc2+ {[%clk 0:01:42]} 28. Kf3 {[%clk 0:00:00]}  Qe4+ {[%clk 0:01:42]} 0-1


[Site "https://www.chess.com"]

[Event "Titled Tuesday Blitz August 22 Late 2023"]
[White "Swicarz, Maciej"]
[Black "Gerbelli Neto, Eduardo"]
[WhiteFideId "1113585"]
[BlackFideId "2103281"]
[WhiteElo "2503"]
[BlackElo "2302"]
[Result "1-0"]
[Round "2"]
[TimeControl "180+1"]
[Date "2023.08.22"]
[WhiteClock "0:00:16"]
[BlackClock "0:00:05"]
[Board "171"]

1. e4 {[%clk 0:03:00]}  e5 {[%clk 0:02:59]} 2. Nf3 {[%clk 0:02:59]}  Nc6 {[%clk 0:02:59]} 3. c3 {[%clk 0:03:00]}  Nf6 {[%clk 0:02:59]} 4. d4 {[%clk 0:03:00]}  Nxe4 {[%clk 0:02:57]} 5. d5 {[%clk 0:02:59]}  Ne7 {[%clk 0:02:57]} 6. Nxe5 {[%clk 0:02:58]}  Ng6 {[%clk 0:02:57]} 7. Qd4 {[%clk 0:02:57]}  Qe7 {[%clk 0:02:12]} 8. Qxe4 {[%clk 0:02:57]}  Qxe5 {[%clk 0:02:12]} 9. Nd2 {[%clk 0:02:52]}  Be7 {[%clk 0:02:06]} 10. Be2 {[%clk 0:02:45]}  Qxe4 {[%clk 0:02:06]} 11. Nxe4 {[%clk 0:02:45]}  O-O {[%clk 0:02:04]} 12. d6 {[%clk 0:02:35]}  cxd6 {[%clk 0:02:03]} 13. O-O {[%clk 0:02:34]}  d5 {[%clk 0:02:04]} 14. Ng3 {[%clk 0:02:34]}  d6 {[%clk 0:02:02]} 15. f4 {[%clk 0:02:31]}  f5 {[%clk 0:01:48]} 16. Bf3 {[%clk 0:02:30]}  Be6 {[%clk 0:01:43]} 17. Re1 {[%clk 0:02:27]}  Kf7 {[%clk 0:01:40]} 18. Be3 {[%clk 0:02:22]}  Bf6 {[%clk 0:01:33]} 19. a3 {[%clk 0:02:19]}  Ne7 {[%clk 0:01:33]} 20. Rad1 {[%clk 0:02:18]}  g6 {[%clk 0:01:32]} 21. Ne2 {[%clk 0:02:09]}  a6 {[%clk 0:01:25]} 22. Bd4 {[%clk 0:02:07]}  Rfe8 {[%clk 0:01:18]} 23. Bxf6 {[%clk 0:02:07]}  Kxf6 {[%clk 0:01:19]} 24. Nd4 {[%clk 0:02:07]}  Bf7 {[%clk 0:01:14]} 25. Nb3 {[%clk 0:02:07]}  Rac8 {[%clk 0:01:11]} 26. Re2 {[%clk 0:01:59]}  Nc6 {[%clk 0:00:55]} 27. Red2 {[%clk 0:01:57]}  d4 {[%clk 0:00:52]} 28. Nxd4 {[%clk 0:01:56]}  Na5 {[%clk 0:00:43]} 29. Nc2 {[%clk 0:01:40]}  Nc4 {[%clk 0:00:36]} 30. Rxd6+ {[%clk 0:01:20]}  Nxd6 {[%clk 0:00:36]} 31. Rxd6+ {[%clk 0:01:21]}  Re6 {[%clk 0:00:35]} 32. Rd7 {[%clk 0:01:13]}  b6 {[%clk 0:00:32]} 33. Kf2 {[%clk 0:01:08]}  Rce8 {[%clk 0:00:31]} 34. Nd4 {[%clk 0:00:57]}  R8e7 {[%clk 0:00:27]} 35. Rd8 {[%clk 0:00:53]}  Re1 {[%clk 0:00:19]} 36. Rd6+ {[%clk 0:00:53]}  Kg7 {[%clk 0:00:19]} 37. Rxb6 {[%clk 0:00:51]}  Rb1 {[%clk 0:00:18]} 38. Nc6 {[%clk 0:00:46]}  Ree1 {[%clk 0:00:17]} 39. Ne5 {[%clk 0:00:44]}  Be8 {[%clk 0:00:11]} 40. c4 {[%clk 0:00:37]}  Rf1+ {[%clk 0:00:11]} 41. Kg3 {[%clk 0:00:37]}  Rfc1 {[%clk 0:00:11]} 42. b4 {[%clk 0:00:34]}  Rb3 {[%clk 0:00:11]} 43. c5 {[%clk 0:00:31]}  Rxa3 {[%clk 0:00:11]} 44. Rb8 {[%clk 0:00:31]}  Bb5 {[%clk 0:00:09]} 45. Rb7+ {[%clk 0:00:29]}  Kg8 {[%clk 0:00:08]} 46. Kh4 {[%clk 0:00:22]}  Kf8 {[%clk 0:00:07]} 47. Kg5 {[%clk 0:00:20]}  Rb3 {[%clk 0:00:07]} 48. Kf6 {[%clk 0:00:18]}  Rxb4 {[%clk 0:00:07]} 49. Rb8+ {[%clk 0:00:17]}  Be8 {[%clk 0:00:08]} 50. Nd7+ {[%clk 0:00:16]}  Kg8 {[%clk 0:00:05]} 51. Rxe8# {[%clk 0:00:16]} 1-0


[Site "https://www.chess.com"]